[Event "Titled Tuesday Blitz January 10 Late 2023"]
[White "Vaglio Munoz, Jaime"]
[Black "Krallis, Christos"]
[WhiteFideId "6500145"]
[BlackFideId "4298896"]
[WhiteElo "2174"]
[BlackElo "2344"]
[Result "0-1"]
[Round "02"]
[TimeControl "180+2"]
[Date "2023.01.10"]
[WhiteClock "0:00:31"]
[BlackClock "0:01:04"]

1. d4 {[%clk 0:00:00]}  Nf6 {[%clk 0:00:00]} 2. c4 {[%clk 0:03:00]}  e6 {[%clk 0:02:59]} 3. a3 {[%clk 0:02:58]}  b6 {[%clk 0:02:59]} 4. g3 {[%clk 0:02:56]}  Bb7 {[%clk 0:02:59]} 5. Nf3 {[%clk 0:02:55]}  c5 {[%clk 0:02:58]} 6. dxc5 {[%clk 0:02:55]}  bxc5 {[%clk 0:02:58]} 7. Bg2 {[%clk 0:02:46]}  Be7 {[%clk 0:02:51]} 8. Qa4 {[%clk 0:02:46]}  O-O {[%clk 0:02:51]} 9. O-O {[%clk 0:02:42]}  Nc6 {[%clk 0:02:49]} 10. Rd1 {[%clk 0:02:42]}  Qb6 {[%clk 0:02:44]} 11. Nc3 {[%clk 0:02:40]}  Rfd8 {[%clk 0:02:37]} 12. Rb1 {[%clk 0:02:38]}  d5 {[%clk 0:02:28]} 13. cxd5 {[%clk 0:02:35]}  exd5 {[%clk 0:02:26]} 14. Bf4 {[%clk 0:02:32]}  d4 {[%clk 0:02:24]} 15. Na2 {[%clk 0:02:24]}  Nd5 {[%clk 0:02:22]} 16. Bd2 {[%clk 0:02:22]}  Qa6 {[%clk 0:02:21]} 17. Qxa6 {[%clk 0:02:20]}  Bxa6 {[%clk 0:02:21]} 18. Bf1 {[%clk 0:02:18]}  Rab8 {[%clk 0:02:22]} 19. Rdc1 {[%clk 0:02:13]}  c4 {[%clk 0:02:13]} 20. e4 {[%clk 0:02:10]}  dxe3 {[%clk 0:02:05]} 21. fxe3 {[%clk 0:01:47]}  Bc5 {[%clk 0:02:03]} 22. Kf2 {[%clk 0:01:48]}  Nb6 {[%clk 0:01:44]} 23. Nc3 {[%clk 0:01:47]}  Na5 {[%clk 0:01:32]} 24. Ne4 {[%clk 0:01:45]}  Nb3 {[%clk 0:01:29]} 25. Nxc5 {[%clk 0:01:32]}  Nxc5 {[%clk 0:01:26]} 26. Bc3 {[%clk 0:01:30]}  Ne4+ {[%clk 0:01:26]} 27. Kg1 {[%clk 0:01:29]}  Nxc3 {[%clk 0:01:25]} 28. Rxc3 {[%clk 0:01:26]}  Nd5 {[%clk 0:01:23]} 29. Rcc1 {[%clk 0:01:25]}  Nxe3 {[%clk 0:01:22]} 30. Ne5 {[%clk 0:01:20]}  Nxf1 {[%clk 0:01:21]} 31. Nc6 {[%clk 0:01:19]}  Nd2 {[%clk 0:01:18]} 32. Nxb8 {[%clk 0:01:15]}  Rxb8 {[%clk 0:01:11]} 33. Rd1 {[%clk 0:01:12]}  Nxb1 {[%clk 0:01:10]} 34. Rxb1 {[%clk 0:01:08]}  c3 {[%clk 0:01:10]} 35. b4 {[%clk 0:01:08]}  c2 {[%clk 0:01:11]} 36. Rc1 {[%clk 0:01:06]}  Bd3 {[%clk 0:01:11]} 37. Kf2 {[%clk 0:01:05]}  Re8 {[%clk 0:01:11]} 38. a4 {[%clk 0:01:06]}  Re2+ {[%clk 0:01:10]} 39. Kf3 {[%clk 0:01:04]}  Rd2 {[%clk 0:01:09]} 40. Ke3 {[%clk 0:01:04]}  Rd1 {[%clk 0:01:09]} 41. Rxc2 {[%clk 0:01:01]}  Bxc2 {[%clk 0:01:09]} 42. b5 {[%clk 0:00:58]}  Bxa4 {[%clk 0:01:09]} 43. b6 {[%clk 0:00:59]}  axb6 {[%clk 0:01:08]} 44. g4 {[%clk 0:00:31]}  Rd7 {[%clk 0:01:09]} 45. h4 {[%clk 0:00:30]}  Bc6 {[%clk 0:01:09]} 46. g5 {[%clk 0:00:30]}  b5 {[%clk 0:01:09]} 47. h5 {[%clk 0:00:31]}  b4 {[%clk 0:01:09]} 48. h6 {[%clk 0:00:31]}  gxh6 {[%clk 0:01:07]} 49. Kf4 {[%clk 0:00:32]}  hxg5+ {[%clk 0:01:06]} 50. Kxg5 {[%clk 0:00:33]}  b3 {[%clk 0:01:05]} 51. Kf6 {[%clk 0:00:32]}  b2 {[%clk 0:01:06]} 52. Ke5 {[%clk 0:00:32]}  b1=Q {[%clk 0:01:06]} 53. Kf4 {[%clk 0:00:32]}  Qb4+ {[%clk 0:01:06]} 54. Ke5 {[%clk 0:00:31]}  Qe4+ {[%clk 0:01:05]} 55. Kf6 {[%clk 0:00:31]}  Qf4# {[%clk 0:01:04]} 0-1


[Site "https://www.chess.com"]

[Event "Titled Tuesday Blitz January 10 Late 2023"]
[White "Gavilan Diaz, Mario"]
[Black "Colivet Gamboa, Julio Cesar"]
[WhiteFideId "2260905"]
[BlackFideId "3949583"]
[WhiteElo "2271"]
[BlackElo "1844"]
[Result "1-0"]
[Round "02"]
[TimeControl "180+2"]
[Date "2023.01.10"]
[WhiteClock "0:02:35"]
[BlackClock "0:02:47"]

1. d4 {[%clk 0:00:00]}  Nf6 {[%clk 0:00:00]} 2. c4 {[%clk 0:03:00]}  g6 {[%clk 0:02:59]} 3. Nc3 {[%clk 0:03:01]}  Bg7 {[%clk 0:02:59]} 4. e4 {[%clk 0:03:01]}  d6 {[%clk 0:03:00]} 5. f4 {[%clk 0:03:01]}  O-O {[%clk 0:03:01]} 6. Nf3 {[%clk 0:03:01]}  c5 {[%clk 0:03:02]} 7. d5 {[%clk 0:03:02]}  e6 {[%clk 0:03:02]} 8. Be2 {[%clk 0:03:02]}  exd5 {[%clk 0:03:02]} 9. cxd5 {[%clk 0:03:02]}  Na6 {[%clk 0:03:03]} 10. O-O {[%clk 0:03:03]}  Nc7 {[%clk 0:03:03]} 11. a4 {[%clk 0:03:02]}  b6 {[%clk 0:03:03]} 12. Nd2 {[%clk 0:02:56]}  Rb8 {[%clk 0:03:02]} 13. Nc4 {[%clk 0:02:47]}  a6 {[%clk 0:03:00]} 14. Bf3 {[%clk 0:02:38]}  b5 {[%clk 0:02:59]} 15. axb5 {[%clk 0:02:37]}  axb5 {[%clk 0:02:59]} 16. Na5 {[%clk 0:02:38]}  Bd7 {[%clk 0:02:59]} 17. e5 {[%clk 0:02:38]}  dxe5 {[%clk 0:02:57]} 18. fxe5 {[%clk 0:02:38]}  Ng4 {[%clk 0:02:53]} 19. Bxg4 {[%clk 0:02:39]}  Bxg4 {[%clk 0:02:49]} 20. Qxg4 {[%clk 0:02:35]}  Bxe5 {[%clk 0:02:47]} 21. Nc6 {[%clk 0:02:35]} 1-0


[Site "https://www.chess.com"]

[Event "Titled Tuesday Blitz January 10 Late 2023"]
[White "Suvorov, Luca"]
[Black "Rodriguez Santiago, Jaime"]
[WhiteFideId "12977071"]
[BlackFideId "3100898"]
[WhiteElo "2310"]
[BlackElo "2026"]
[Result "0-1"]
[Round "02"]
[TimeControl "180+2"]
[Date "2023.01.10"]
[WhiteClock "0:00:15"]
[BlackClock "0:00:16"]

1. d4 {[%clk 0:00:00]}  d5 {[%clk 0:00:00]} 2. c4 {[%clk 0:02:53]}  e6 {[%clk 0:02:59]} 3. Nc3 {[%clk 0:02:53]}  c6 {[%clk 0:02:58]} 4. e3 {[%clk 0:02:53]}  Nf6 {[%clk 0:02:58]} 5. Qc2 {[%clk 0:02:49]}  Nbd7 {[%clk 0:02:57]} 6. f3 {[%clk 0:02:44]}  Be7 {[%clk 0:02:56]} 7. Bd3 {[%clk 0:02:45]}  dxc4 {[%clk 0:02:51]} 8. Bxc4 {[%clk 0:02:45]}  b5 {[%clk 0:02:51]} 9. Bd3 {[%clk 0:02:45]}  a6 {[%clk 0:02:51]} 10. Nge2 {[%clk 0:02:45]}  Bb7 {[%clk 0:02:52]} 11. O-O {[%clk 0:02:45]}  c5 {[%clk 0:02:52]} 12. a4 {[%clk 0:02:45]}  c4 {[%clk 0:02:51]} 13. Be4 {[%clk 0:02:36]}  Nxe4 {[%clk 0:02:38]} 14. Nxe4 {[%clk 0:02:33]}  O-O {[%clk 0:02:37]} 15. Rd1 {[%clk 0:02:32]}  Nf6 {[%clk 0:02:34]} 16. Nxf6+ {[%clk 0:02:19]}  Bxf6 {[%clk 0:02:29]} 17. b3 {[%clk 0:01:50]}  Rc8 {[%clk 0:02:28]} 18. bxc4 {[%clk 0:01:51]}  Rxc4 {[%clk 0:02:19]} 19. Qb1 {[%clk 0:01:49]}  Qb6 {[%clk 0:02:17]} 20. Nf4 {[%clk 0:01:43]}  Rfc8 {[%clk 0:02:08]} 21. Nd3 {[%clk 0:00:50]}  Rxd4 {[%clk 0:01:53]} 22. Bb2 {[%clk 0:00:47]}  Rh4 {[%clk 0:01:46]} 23. Bxf6 {[%clk 0:00:27]}  Qxe3+ {[%clk 0:01:25]} 24. Nf2 {[%clk 0:00:24]}  gxf6 {[%clk 0:01:24]} 25. axb5 {[%clk 0:00:23]}  axb5 {[%clk 0:01:20]} 26. Qxb5 {[%clk 0:00:23]}  Rc2 {[%clk 0:01:10]} 27. Rf1 {[%clk 0:00:23]}  Bd5 {[%clk 0:01:07]} 28. Qb8+ {[%clk 0:00:22]}  Kg7 {[%clk 0:00:51]} 29. Rae1 {[%clk 0:00:16]}  Qg5 {[%clk 0:00:48]} 30. Qg3 {[%clk 0:00:15]}  Rb4 {[%clk 0:00:36]} 31. Nd3 {[%clk 0:00:14]}  Qxg3 {[%clk 0:00:32]} 32. hxg3 {[%clk 0:00:13]}  Rb3 {[%clk 0:00:19]} 33. Nf2 {[%clk 0:00:12]}  Rbb2 {[%clk 0:00:18]} 34. g4 {[%clk 0:00:10]}  h5 {[%clk 0:00:18]} 35. gxh5 {[%clk 0:00:11]}  Kh6 {[%clk 0:00:18]} 36. Ng4+ {[%clk 0:00:11]}  Kxh5 {[%clk 0:00:19]} 37. Ne3 {[%clk 0:00:10]}  Rd2 {[%clk 0:00:15]} 38. Kh2 {[%clk 0:00:11]}  Ba8 {[%clk 0:00:13]} 39. Kg3 {[%clk 0:00:11]}  f5 {[%clk 0:00:12]} 40. Rh1+ {[%clk 0:00:12]}  Kg5 {[%clk 0:00:12]} 41. Rh3 {[%clk 0:00:12]}  f4+ {[%clk 0:00:12]} 42. Kh2 {[%clk 0:00:12]}  fxe3 {[%clk 0:00:12]} 43. Rg3+ {[%clk 0:00:12]}  Kf5 {[%clk 0:00:13]} 44. Rg4 {[%clk 0:00:12]}  Bxf3 {[%clk 0:00:13]} 45. Rf1 {[%clk 0:00:12]}  Rxg2+ {[%clk 0:00:11]} 46. Kh3 {[%clk 0:00:12]}  Rxg4 {[%clk 0:00:11]} 47. Rxf3+ {[%clk 0:00:12]}  Rf4 {[%clk 0:00:10]} 48. Rxe3 {[%clk 0:00:12]}  e5 {[%clk 0:00:11]} 49. Kg3 {[%clk 0:00:12]}  Rbb4 {[%clk 0:00:11]} 50. Kh3 {[%clk 0:00:13]}  Rbe4 {[%clk 0:00:12]} 51. Rd3 {[%clk 0:00:13]}  Rh4+ {[%clk 0:00:12]} 52. Kg3 {[%clk 0:00:13]}  Reg4+ {[%clk 0:00:13]} 53. Kf3 {[%clk 0:00:13]}  Rh3+ {[%clk 0:00:14]} 54. Ke2 {[%clk 0:00:14]}  Rxd3 {[%clk 0:00:14]} 55. Kxd3 {[%clk 0:00:14]}  Rg3+ {[%clk 0:00:15]} 56. Ke2 {[%clk 0:00:15]}  Kf4 {[%clk 0:00:16]} 0-1


[Site "https://www.chess.com"]

[Event "Titled Tuesday Blitz January 10 Late 2023"]
[White "gshwbedhkhd"]
[Black "Coelho, Ramyres Santana"]
[BlackFideId "2120690"]
[WhiteElo "2527"]
[BlackElo "1981"]
[Result "1/2-1/2"]
[Round "02"]
[TimeControl "180+2"]
[Date "2023.01.10"]
[WhiteClock "0:00:15"]
[BlackClock "0:00:35"]

1. e4 {[%clk 0:00:00]}  c5 {[%clk 0:00:00]} 2. Nf3 {[%clk 0:03:00]}  d6 {[%clk 0:02:45]} 3. Nc3 {[%clk 0:02:58]}  Nc6 {[%clk 0:02:43]} 4. d4 {[%clk 0:02:57]}  cxd4 {[%clk 0:02:42]} 5. Nxd4 {[%clk 0:02:56]}  Bd7 {[%clk 0:02:40]} 6. Be2 {[%clk 0:02:57]}  Nf6 {[%clk 0:02:41]} 7. O-O {[%clk 0:02:44]}  e6 {[%clk 0:02:40]} 8. Be3 {[%clk 0:02:43]}  a6 {[%clk 0:02:40]} 9. Kh1 {[%clk 0:02:39]}  Be7 {[%clk 0:02:40]} 10. f4 {[%clk 0:02:34]}  O-O {[%clk 0:02:39]} 11. Bf3 {[%clk 0:02:34]}  Rc8 {[%clk 0:02:39]} 12. Qd3 {[%clk 0:02:35]}  b5 {[%clk 0:02:38]} 13. a3 {[%clk 0:02:27]}  Re8 {[%clk 0:02:35]} 14. Rad1 {[%clk 0:02:23]}  Qc7 {[%clk 0:02:30]} 15. Nb3 {[%clk 0:02:16]}  b4 {[%clk 0:02:29]} 16. axb4 {[%clk 0:02:02]}  Nxb4 {[%clk 0:02:25]} 17. Qd2 {[%clk 0:01:59]}  d5 {[%clk 0:02:26]} 18. e5 {[%clk 0:01:59]}  Ne4 {[%clk 0:02:05]} 19. Nxe4 {[%clk 0:01:56]}  dxe4 {[%clk 0:02:05]} 20. Bxe4 {[%clk 0:01:54]}  Bb5 {[%clk 0:02:04]} 21. Rf2 {[%clk 0:01:55]}  g6 {[%clk 0:02:01]} 22. Nd4 {[%clk 0:01:49]}  Bc4 {[%clk 0:01:59]} 23. c3 {[%clk 0:01:46]}  Nd5 {[%clk 0:01:56]} 24. b3 {[%clk 0:01:36]}  Bb5 {[%clk 0:01:55]} 25. c4 {[%clk 0:01:36]}  Nxe3 {[%clk 0:01:53]} 26. Qxe3 {[%clk 0:01:36]}  Bd7 {[%clk 0:01:53]} 27. Rfd2 {[%clk 0:01:37]}  Rcd8 {[%clk 0:01:48]} 28. Qf3 {[%clk 0:01:32]}  Bb4 {[%clk 0:01:46]} 29. Rd3 {[%clk 0:01:25]}  Bc8 {[%clk 0:01:45]} 30. h4 {[%clk 0:01:24]}  Bc5 {[%clk 0:01:41]} 31. h5 {[%clk 0:01:14]}  Qb6 {[%clk 0:01:37]} 32. Nc2 {[%clk 0:01:10]}  Rxd3 {[%clk 0:01:37]} 33. Qxd3 {[%clk 0:00:58]}  Be7 {[%clk 0:01:35]} 34. hxg6 {[%clk 0:00:58]}  hxg6 {[%clk 0:01:29]} 35. Qe3 {[%clk 0:00:56]}  Bc5 {[%clk 0:01:29]} 36. Qf3 {[%clk 0:00:46]}  Rd8 {[%clk 0:01:25]} 37. g3 {[%clk 0:00:44]}  Rxd1+ {[%clk 0:01:23]} 38. Qxd1 {[%clk 0:00:33]}  Qxb3 {[%clk 0:01:22]} 39. Qd8+ {[%clk 0:00:34]}  Kg7 {[%clk 0:01:16]} 40. Qxc8 {[%clk 0:00:34]}  Bf2 {[%clk 0:01:17]} 41. Qd8 {[%clk 0:00:25]}  Qxg3 {[%clk 0:01:10]} 42. Qf6+ {[%clk 0:00:21]}  Kf8 {[%clk 0:01:09]} 43. Qh8+ {[%clk 0:00:20]}  Ke7 {[%clk 0:01:08]} 44. Qh2 {[%clk 0:00:17]}  Kd7 {[%clk 0:01:07]} 45. Nb4 {[%clk 0:00:17]}  a5 {[%clk 0:00:46]} 46. Nd3 {[%clk 0:00:03]}  Qxh2+ {[%clk 0:00:43]} 47. Kxh2 {[%clk 0:00:03]}  Be3 {[%clk 0:00:41]} 48. Kg2 {[%clk 0:00:04]}  g5 {[%clk 0:00:41]} 49. Kf3 {[%clk 0:00:04]}  gxf4 {[%clk 0:00:41]} 50. Nxf4 {[%clk 0:00:05]}  Bd4 {[%clk 0:00:41]} 51. Nd3 {[%clk 0:00:05]}  a4 {[%clk 0:00:41]} 52. Bb7 {[%clk 0:00:05]}  a3 {[%clk 0:00:41]} 53. Nc1 {[%clk 0:00:03]}  Bxe5 {[%clk 0:00:40]} 54. Na2 {[%clk 0:00:03]}  Kc7 {[%clk 0:00:39]} 55. Be4 {[%clk 0:00:04]}  Kb6 {[%clk 0:00:38]} 56. Bd3 {[%clk 0:00:03]}  Kc5 {[%clk 0:00:38]} 57. Ke4 {[%clk 0:00:03]}  Bb2 {[%clk 0:00:39]} 58. Be2 {[%clk 0:00:03]}  f5+ {[%clk 0:00:38]} 59. Kd3 {[%clk 0:00:04]}  e5 {[%clk 0:00:38]} 60. Kc2 {[%clk 0:00:04]}  e4 {[%clk 0:00:38]} 61. Kd2 {[%clk 0:00:04]}  f4 {[%clk 0:00:37]} 62. Bg4 {[%clk 0:00:03]}  f3 {[%clk 0:00:37]} 63. Ke3 {[%clk 0:00:02]}  Kxc4 {[%clk 0:00:36]} 64. Kxe4 {[%clk 0:00:03]}  f2 {[%clk 0:00:35]} 65. Be6+ {[%clk 0:00:02]}  Kb5 {[%clk 0:00:35]} 66. Bh3 {[%clk 0:00:01]}  Ka4 {[%clk 0:00:33]} 67. Ke3 {[%clk 0:00:02]}  f1=Q {[%clk 0:00:30]} 68. Bxf1 {[%clk 0:00:02]}  Kb3 {[%clk 0:00:28]} 69. Kd3 {[%clk 0:00:02]}  Kxa2 {[%clk 0:00:29]} 70. Kc2 {[%clk 0:00:01]}  Be5 {[%clk 0:00:29]} 71. Bc4+ {[%clk 0:00:02]}  Ka1 {[%clk 0:00:27]} 72. Bd5 {[%clk 0:00:03]}  Bb2 {[%clk 0:00:27]} 73. Be6 {[%clk 0:00:03]}  Bg7 {[%clk 0:00:28]} 74. Bf7 {[%clk 0:00:03]}  Bb2 {[%clk 0:00:29]} 75. Bg8 {[%clk 0:00:03]}  Bd4 {[%clk 0:00:30]} 76. Bf7 {[%clk 0:00:04]}  Bc5 {[%clk 0:00:28]} 77. Bg8 {[%clk 0:00:05]}  Bd6 {[%clk 0:00:29]} 78. Bf7 {[%clk 0:00:06]}  Bb4 {[%clk 0:00:30]} 79. Bg8 {[%clk 0:00:07]}  Be7 {[%clk 0:00:31]} 80. Bf7 {[%clk 0:00:08]}  Bf6 {[%clk 0:00:31]} 81. Bg8 {[%clk 0:00:08]}  Be5 {[%clk 0:00:32]} 82. Bf7 {[%clk 0:00:09]}  Bd4 {[%clk 0:00:33]} 83. Bg8 {[%clk 0:00:10]}  a2 {[%clk 0:00:34]} 84. Bf7 {[%clk 0:00:11]}  Bb2 {[%clk 0:00:34]} 85. Bg8 {[%clk 0:00:12]}  Bf6 {[%clk 0:00:34]} 86. Bf7 {[%clk 0:00:13]}  Bb2 {[%clk 0:00:33]} 87. Bg8 {[%clk 0:00:14]}  Bf6 {[%clk 0:00:34]} 88. Bf7 {[%clk 0:00:15]}  Bb2 {[%clk 0:00:35]} 1/2-1/2


[Site "https://www.chess.com"]

[Event "Titled Tuesday Blitz January 10 Late 2023"]
[White "Muhammad, Shahzeb"]
[Black "Belenkaya, Dina"]
[WhiteFideId "7804806"]
[BlackFideId "24142654"]
[WhiteElo "1853"]
[BlackElo "2267"]
[Result "1/2-1/2"]
[Round "02"]
[TimeControl "180+2"]
[Date "2023.01.10"]
[WhiteClock "0:00:08"]
[BlackClock "0:00:10"]

1. e4 {[%clk 0:00:00]}  c6 {[%clk 0:00:00]} 2. d4 {[%clk 0:03:00]}  d5 {[%clk 0:02:54]} 3. exd5 {[%clk 0:02:58]}  cxd5 {[%clk 0:02:54]} 4. c4 {[%clk 0:02:59]}  Nf6 {[%clk 0:02:55]} 5. Nc3 {[%clk 0:03:00]}  Nc6 {[%clk 0:02:53]} 6. Nf3 {[%clk 0:03:01]}  g6 {[%clk 0:02:53]} 7. c5 {[%clk 0:03:01]}  Bg4 {[%clk 0:02:50]} 8. Bb5 {[%clk 0:03:02]}  a6 {[%clk 0:02:49]} 9. Bxc6+ {[%clk 0:03:02]}  bxc6 {[%clk 0:02:48]} 10. Qa4 {[%clk 0:03:01]}  Qc7 {[%clk 0:02:49]} 11. Bf4 {[%clk 0:03:02]}  Qb7 {[%clk 0:02:42]} 12. Ne5 {[%clk 0:02:54]}  Rc8 {[%clk 0:02:39]} 13. O-O {[%clk 0:02:53]}  Bg7 {[%clk 0:02:39]} 14. Bg5 {[%clk 0:02:42]}  O-O {[%clk 0:02:36]} 15. Bxf6 {[%clk 0:02:34]}  exf6 {[%clk 0:02:31]} 16. Nxg4 {[%clk 0:02:33]}  Qxb2 {[%clk 0:02:29]} 17. Qb3 {[%clk 0:02:33]}  Qd2 {[%clk 0:02:24]} 18. Rad1 {[%clk 0:02:22]}  Qf4 {[%clk 0:02:19]} 19. Ne3 {[%clk 0:02:20]}  f5 {[%clk 0:02:19]} 20. Ne2 {[%clk 0:02:10]}  Qh4 {[%clk 0:02:19]} 21. g3 {[%clk 0:02:08]}  Qh6 {[%clk 0:02:16]} 22. Ng2 {[%clk 0:02:07]}  g5 {[%clk 0:02:14]} 23. Qd3 {[%clk 0:02:03]}  Rfe8 {[%clk 0:02:13]} 24. Rfe1 {[%clk 0:02:01]}  Qg6 {[%clk 0:02:13]} 25. Ne3 {[%clk 0:01:59]}  Re4 {[%clk 0:02:10]} 26. f3 {[%clk 0:01:54]}  Re6 {[%clk 0:02:09]} 27. Qxf5 {[%clk 0:01:54]}  Rce8 {[%clk 0:01:57]} 28. Qxg6 {[%clk 0:01:43]}  hxg6 {[%clk 0:01:55]} 29. Nxd5 {[%clk 0:01:42]}  Rxe2 {[%clk 0:01:56]} 30. Rxe2 {[%clk 0:01:27]}  Rxe2 {[%clk 0:01:43]} 31. Nb4 {[%clk 0:01:24]}  Re6 {[%clk 0:01:43]} 32. Nxa6 {[%clk 0:01:19]}  Kf8 {[%clk 0:01:05]} 33. Kf2 {[%clk 0:01:14]}  Ke7 {[%clk 0:01:05]} 34. Nb4 {[%clk 0:01:12]}  Kd7 {[%clk 0:00:56]} 35. d5 {[%clk 0:01:09]}  cxd5 {[%clk 0:00:51]} 36. Rxd5+ {[%clk 0:01:07]}  Kc7 {[%clk 0:00:49]} 37. c6 {[%clk 0:01:05]}  Bc3 {[%clk 0:00:47]} 38. Rd7+ {[%clk 0:01:01]}  Kc8 {[%clk 0:00:46]} 39. Nd5 {[%clk 0:01:01]}  Bd4+ {[%clk 0:00:44]} 40. Kg2 {[%clk 0:00:33]}  Rxc6 {[%clk 0:00:43]} 41. Rxf7 {[%clk 0:00:32]}  Rc2+ {[%clk 0:00:44]} 42. Kh3 {[%clk 0:00:30]}  Rxa2 {[%clk 0:00:43]} 43. Ne7+ {[%clk 0:00:29]}  Kd7 {[%clk 0:00:38]} 44. Nxg6+ {[%clk 0:00:28]}  Ke6 {[%clk 0:00:35]} 45. Rf8 {[%clk 0:00:28]}  Bc5 {[%clk 0:00:34]} 46. Rc8 {[%clk 0:00:26]}  Bg1 {[%clk 0:00:26]} 47. Kg4 {[%clk 0:00:24]}  Bxh2 {[%clk 0:00:26]} 48. Rc6+ {[%clk 0:00:24]}  Kd5 {[%clk 0:00:25]} 49. Rf6 {[%clk 0:00:19]}  Rg2 {[%clk 0:00:21]} 50. Rf5+ {[%clk 0:00:18]}  Ke6 {[%clk 0:00:18]} 51. Rxg5 {[%clk 0:00:19]}  Rxg3+ {[%clk 0:00:18]} 52. Kh5 {[%clk 0:00:17]}  Rxf3 {[%clk 0:00:18]} 53. Rg4 {[%clk 0:00:18]}  Bd6 {[%clk 0:00:15]} 54. Nh4 {[%clk 0:00:16]}  Kf6 {[%clk 0:00:14]} 55. Rg6+ {[%clk 0:00:14]}  Kf7 {[%clk 0:00:14]} 56. Rxd6 {[%clk 0:00:14]}  Rf1 {[%clk 0:00:14]} 57. Rd7+ {[%clk 0:00:10]}  Ke6 {[%clk 0:00:14]} 58. Rg7 {[%clk 0:00:09]}  Kf6 {[%clk 0:00:14]} 59. Rg6+ {[%clk 0:00:09]}  Kf7 {[%clk 0:00:13]} 60. Rg4 {[%clk 0:00:09]}  Kf6 {[%clk 0:00:12]} 61. Rg6+ {[%clk 0:00:09]}  Kf7 {[%clk 0:00:12]} 62. Kh6 {[%clk 0:00:09]}  Rf4 {[%clk 0:00:12]} 63. Kg5 {[%clk 0:00:10]}  Rxh4 {[%clk 0:00:12]} 64. Kxh4 {[%clk 0:00:08]}  Kxg6 {[%clk 0:00:10]} 1/2-1/2


[Site "https://www.chess.com"]

[Event "Titled Tuesday Blitz January 10 Late 2023"]
[White "La Villa Rivas, Marlon Javier"]
[Black "Martinez Reyes, Pedro Ramon"]
[WhiteFideId "3519546"]
[BlackFideId "3901807"]
[WhiteElo "2246"]
[BlackElo "2376"]
[Result "0-1"]
[Round "02"]
[TimeControl "180+2"]
[Date "2023.01.10"]
[WhiteClock "0:00:57"]
[BlackClock "0:01:44"]

1. e4 {[%clk 0:00:00]}  e6 {[%clk 0:00:00]} 2. d4 {[%clk 0:03:00]}  d5 {[%clk 0:02:59]} 3. Nd2 {[%clk 0:03:00]}  Nf6 {[%clk 0:02:59]} 4. e5 {[%clk 0:03:01]}  Ne4 {[%clk 0:03:00]} 5. Nxe4 {[%clk 0:03:00]}  dxe4 {[%clk 0:03:00]} 6. Ne2 {[%clk 0:02:56]}  c5 {[%clk 0:03:01]} 7. c3 {[%clk 0:02:51]}  Nc6 {[%clk 0:03:00]} 8. Be3 {[%clk 0:02:50]}  cxd4 {[%clk 0:03:01]} 9. cxd4 {[%clk 0:02:46]}  Bb4+ {[%clk 0:02:54]} 10. Nc3 {[%clk 0:02:46]}  O-O {[%clk 0:02:41]} 11. Be2 {[%clk 0:02:43]}  Qa5 {[%clk 0:02:42]} 12. O-O {[%clk 0:02:34]}  Bxc3 {[%clk 0:02:41]} 13. bxc3 {[%clk 0:02:30]}  Qxc3 {[%clk 0:02:32]} 14. Rc1 {[%clk 0:02:31]}  Qa5 {[%clk 0:02:32]} 15. Bc4 {[%clk 0:02:25]}  Rd8 {[%clk 0:02:31]} 16. Qg4 {[%clk 0:02:21]}  Ne7 {[%clk 0:02:30]} 17. Qxe4 {[%clk 0:02:15]}  Bd7 {[%clk 0:02:17]} 18. Bg5 {[%clk 0:02:02]}  Bc6 {[%clk 0:02:16]} 19. Qg4 {[%clk 0:02:01]}  Re8 {[%clk 0:02:14]} 20. h4 {[%clk 0:01:57]}  Nf5 {[%clk 0:02:11]} 21. Bd3 {[%clk 0:01:37]}  Qd5 {[%clk 0:02:04]} 22. Bxf5 {[%clk 0:01:34]}  exf5 {[%clk 0:02:02]} 23. Qg3 {[%clk 0:01:23]}  Qxd4 {[%clk 0:02:02]} 24. Bf6 {[%clk 0:01:24]}  Qg4 {[%clk 0:01:58]} 25. Qxg4 {[%clk 0:01:18]}  fxg4 {[%clk 0:01:58]} 26. Bg5 {[%clk 0:01:11]}  Rxe5 {[%clk 0:01:59]} 27. Rfe1 {[%clk 0:01:12]}  Rae8 {[%clk 0:01:59]} 28. Be3 {[%clk 0:01:12]}  f5 {[%clk 0:01:58]} 29. Red1 {[%clk 0:01:10]}  Kf7 {[%clk 0:01:57]} 30. Bxa7 {[%clk 0:01:08]}  Ra5 {[%clk 0:01:46]} 31. Be3 {[%clk 0:01:04]}  Rxa2 {[%clk 0:01:46]} 32. Rb1 {[%clk 0:00:57]}  Rxe3 {[%clk 0:01:45]} 33. fxe3 {[%clk 0:00:56]}  Rxg2+ {[%clk 0:01:43]} 34. Kf1 {[%clk 0:00:56]}  Rh2 {[%clk 0:01:44]} 35. Rd6 {[%clk 0:00:57]} 0-1


[Site "https://www.chess.com"]

[Event "Titled Tuesday Blitz January 10 Late 2023"]
[White "Ozates, Tuna"]
[Black "Wang, Alexander J"]
[WhiteFideId "6354521"]
[BlackFideId "30955270"]
[WhiteElo "2251"]
[BlackElo "1815"]
[Result "1-0"]
[Round "02"]
[TimeControl "180+2"]
[Date "2023.01.10"]
[WhiteClock "0:02:32"]
[BlackClock "0:01:01"]

1. Nf3 {[%clk 0:00:00]}  d5 {[%clk 0:00:00]} 2. c4 {[%clk 0:02:57]}  e6 {[%clk 0:02:59]} 3. d4 {[%clk 0:02:57]}  c5 {[%clk 0:02:58]} 4. cxd5 {[%clk 0:02:56]}  exd5 {[%clk 0:02:54]} 5. Nc3 {[%clk 0:02:56]}  Nc6 {[%clk 0:02:55]} 6. g3 {[%clk 0:02:56]}  Nf6 {[%clk 0:02:55]} 7. Bg2 {[%clk 0:02:56]}  cxd4 {[%clk 0:02:54]} 8. Nxd4 {[%clk 0:02:56]}  Bc5 {[%clk 0:02:50]} 9. Nxc6 {[%clk 0:02:57]}  bxc6 {[%clk 0:02:49]} 10. O-O {[%clk 0:02:56]}  O-O {[%clk 0:02:50]} 11. e4 {[%clk 0:02:57]}  dxe4 {[%clk 0:02:50]} 12. Nxe4 {[%clk 0:02:57]}  Nxe4 {[%clk 0:02:29]} 13. Bxe4 {[%clk 0:02:56]}  Qxd1 {[%clk 0:02:28]} 14. Rxd1 {[%clk 0:02:57]}  Bh3 {[%clk 0:02:20]} 15. Bxc6 {[%clk 0:02:58]}  Rad8 {[%clk 0:02:12]} 16. Bf4 {[%clk 0:02:54]}  Bb6 {[%clk 0:02:05]} 17. Bg2 {[%clk 0:02:53]}  Bg4 {[%clk 0:02:02]} 18. Rxd8 {[%clk 0:02:51]}  Rxd8 {[%clk 0:02:00]} 19. h3 {[%clk 0:02:49]}  Be6 {[%clk 0:01:57]} 20. a4 {[%clk 0:02:50]}  Rc8 {[%clk 0:01:41]} 21. a5 {[%clk 0:02:45]}  Bd4 {[%clk 0:01:29]} 22. Rd1 {[%clk 0:02:44]}  Bxb2 {[%clk 0:01:28]} 23. Bb7 {[%clk 0:02:41]}  Re8 {[%clk 0:01:21]} 24. Be3 {[%clk 0:02:41]}  Bxh3 {[%clk 0:01:20]} 25. Bxa7 {[%clk 0:02:42]}  h5 {[%clk 0:01:16]} 26. a6 {[%clk 0:02:40]}  Bg4 {[%clk 0:01:13]} 27. Rb1 {[%clk 0:02:40]}  Be5 {[%clk 0:01:11]} 28. Be3 {[%clk 0:02:39]}  Bf5 {[%clk 0:01:06]} 29. Rb5 {[%clk 0:02:37]}  Bd3 {[%clk 0:01:03]} 30. Rxe5 {[%clk 0:02:33]}  Rxe5 {[%clk 0:01:01]} 31. a7 {[%clk 0:02:32]} 1-0


[Site "https://www.chess.com"]